bitfinex-derivatives/quotes_BNBF0:USTF0_20250126
["timestamp","ask_amount","ask_price","bid_price","bid_amount"]
[1737932860978,0.29808036,670.96,669.43,0.27418915]
[1737932861183,0.29808036,670.96,669.42,0.27418915]
[1737932861378,0.29808036,670.96,669.43,0.27418915]
[1737932861577,2.42022189,670.95,669.44,0.27418915]
[1737932861778,0.29809369,670.93,669.45,0.27418915]
[1737932861982,0.29809369,670.93,669.46,0.27418205]
[1737932862176,0.29809369,670.93,669.42,0.27418205]
[1737932862382,2.42022189,670.92,669.43,0.27418205]
[1737932862582,0.29810702,670.9,669.42,0.27418205]
[1737932862785,0.29810702,670.9,669.43,0.27418205]
[1737932862980,0.29810702,670.9,669.42,0.27418205]
[1737932863179,0.29810702,670.9,669.43,0.27418205]
[1737932863380,2.42022189,670.89,669.44,0.27418205]
[1737932863583,2.42022189,670.89,669.45,0.27418205]
[1737932863885,2.42022189,670.89,669.46,0.27418205]
[1737932864186,2.42022189,670.88,669.47,0.27418205]
[1737932864484,0.29812479,670.86,669.48,0.27418205]
[1737932864679,0.29812479,670.86,669.42,0.27418205]
[1737932864879,0.29812479,670.86,669.43,0.27418205]
[1737932865079,0.29812479,670.86,669.44,0.27418205]
[1737932865284,2.42022189,670.85,669.45,0.27418205]
[1737932865486,2.42022189,670.85,669.46,0.27421091]
[1737932865682,0.93085457,670.84,669.41,0.29877055]
[1737932865884,2.42022189,670.84,669.36,1.11174428]
[1737932866386,2.42022189,670.83,669.36,1.11174428]
[1737932866780,2.42022189,670.83,669.37,0.27421402]
[1737932867183,2.42022189,670.82,669.37,0.27421402]
[1737932867689,2.42022189,670.81,669.37,0.27421402]
[1737932868081,2.42022189,670.8,669.37,0.27421402]
[1737932868289,2.42022189,670.8,669.38,0.27422181]
[1737932868588,2.42022189,670.8,669.39,0.27422181]
[1737932868787,2.42022189,670.8,669.37,0.27422181]
[1737932868982,2.42022189,670.8,669.38,0.27422181]
[1737932869289,0.29816035,670.78,669.39,0.27422181]
[1737932869491,0.29816035,670.78,669.4,0.27422181]
[1737932869690,0.29816035,670.78,669.37,0.27422181]
[1737932870089,2.42022189,670.77,669.37,0.27422181]
[1737932870284,0.29817368,670.75,669.37,0.27422181]
[1737932871091,2.42022189,670.74,669.37,0.27422181]
[1737932871292,0.29818702,670.72,669.37,0.27422181]
[1737932872187,2.42022189,670.71,669.37,0.27422181]
[1737932872393,0.29819591,670.7,669.37,0.27422181]
[1737932872594,2.7184178,670.7,669.37,0.27422181]
[1737932873093,2.42022189,670.69,669.37,0.27422181]
[1737932873295,0.2982048,670.68,669.37,0.27422181]
[1737932873693,0.2982048,670.68,669.38,0.27422181]
[1737932873993,2.42022189,670.67,669.39,0.27422181]
[1737932874194,2.42022189,670.67,669.4,0.27422181]
[1737932874395,2.42022189,670.67,669.41,0.27422181]
[1737932874596,2.42022189,670.67,669.42,0.27422181]
[1737932874798,2.42022189,670.66,669.43,0.27422181]
[1737932875103,2.42022189,670.66,668.96,1.11174428]
[1737932875104,2.42022189,670.66,669.44,0.27422181]
[1737932875392,2.42022189,670.65,669.45,0.27422181]
[1737932875590,2.42022189,670.65,669.46,0.27422181]
[1737932875795,2.42022189,670.64,669.47,0.27422181]
[1737932875991,2.42022189,670.64,669.48,0.27422181]
[1737932876193,2.42022189,670.64,668.96,1.11174428]
[1737932876194,2.42022189,670.64,669.49,0.27422181]
[1737932876390,2.42022189,670.64,669.5,0.27422181]
[1737932876597,2.42022189,670.63,668.97,0.27422181]
[1737932876797,0.29823148,670.62,668.99,0.29895813]
[1737932876991,0.29823148,670.62,669.0,0.27422181]
[1737932877197,2.71845337,670.62,669.37,1.11174428]
[1737932877396,2.71845337,670.62,669.38,0.27422181]
[1737932877892,2.42022189,670.61,669.39,0.27422181]
[1737932878099,2.42022189,670.61,669.4,0.27422181]
[1737932878299,0.29824038,670.6,669.37,1.11174428]
[1737932878497,0.29824038,670.6,669.38,0.27421067]
[1737932878697,2.42022189,670.59,669.39,0.27421067]
[1737932878898,0.29824927,670.58,669.4,0.27421067]
[1737932879199,2.42022189,670.57,669.4,0.27421067]
[1737932879399,0.29825817,670.56,669.4,0.27421067]
[1737932879600,2.71848006,670.56,669.4,0.27421067]
[1737932879902,2.71848006,670.56,669.41,0.27421067]
[1737932880293,2.42022189,670.55,669.42,0.27421067]
[1737932880497,2.42022189,670.55,669.21,0.27421067]
[1737932880699,2.42022189,670.55,669.22,0.27421067]
[1737932880996,2.42022189,670.55,669.23,0.27421067]
[1737932881200,2.42022189,670.54,669.24,0.27421067]
[1737932881400,2.42022189,670.54,669.25,0.27421067]
[1737932881702,2.42022189,670.53,669.26,0.27421067]
[1737932882097,2.42022189,670.52,669.27,0.27421832]
[1737932882301,2.42022189,670.52,669.21,0.27421832]
[1737932882498,2.42022189,670.51,669.22,0.27421832]
[1737932882806,2.42022189,670.51,669.23,0.27421832]
[1737932883004,2.42022189,670.51,669.24,0.27421832]
[1737932883304,2.42022189,670.5,669.25,0.27421832]
[1737932883504,2.42022189,670.49,669.12,0.27421832]
[1737932883699,2.42022189,670.49,669.13,0.27421832]
[1737932883898,2.42022189,670.49,669.14,0.2742144]
[1737932884102,2.42022189,670.49,669.15,0.2742144]
[1737932884302,2.42022189,670.49,669.16,0.2742144]
[1737932884504,2.42022189,670.48,669.12,0.2742144]
[1737932884805,2.42022189,670.48,669.13,0.2742144]
[1737932885001,2.42022189,670.48,669.14,0.2742144]
[1737932885205,2.42022189,670.47,669.12,0.2742144]
[1737932885404,2.42022189,670.47,669.08,1.11174428]
[1737932885405,2.42022189,670.47,669.13,0.2742144]
[1737932885605,2.42022189,670.47,669.14,0.27421561]
[1737932885805,2.42022189,670.47,669.09,0.27421561]
[1737932886305,2.42022189,670.46,669.09,0.27421561]
[1737932886797,2.42022189,670.46,669.1,0.29890898]
[1737932887002,2.42022189,670.46,669.11,0.27421561]
[1737932887302,2.42022189,670.45,669.11,0.27421561]
[1737932888105,2.42022189,670.44,669.12,0.29890004]
[1737932888307,2.42022189,670.44,669.13,0.27421561]
[1737932888806,2.42022189,670.43,669.13,0.27421561]
[1737932889607,2.42022189,670.42,669.13,0.27421561]
[1737932890007,2.42022189,670.41,669.13,0.27421561]
[1737932890609,2.42022189,670.4,669.13,0.27421561]
[1737932891405,2.42022189,670.4,669.14,0.27421561]
[1737932891602,2.42022189,670.4,669.15,0.27421561]
[1737932891804,2.42022189,670.39,669.12,0.29890004]
[1737932892004,2.42022189,670.39,669.13,0.27421968]
[1737932892312,2.42022189,670.38,669.13,0.27421968]
[1737932893111,2.42022189,670.37,669.13,0.27421968]
[1737932893511,2.42022189,670.36,669.13,0.27421968]
[1737932894006,2.42022189,670.35,669.13,0.27421968]
[1737932894408,2.42022189,670.34,669.13,0.27421968]
[1737932894807,2.42022189,670.34,669.14,0.27421968]
[1737932895010,2.42022189,670.34,669.12,0.29890004]
[1737932895011,2.42022189,670.34,669.15,0.27421968]
[1737932895312,2.42022189,670.33,669.16,0.27421968]
[1737932895511,2.42022189,670.33,669.13,0.27421968]
[1737932895712,2.42022189,670.33,669.14,0.27421968]
[1737932895913,2.42022189,670.32,669.13,0.27421968]
[1737932896609,2.42022189,670.31,669.14,0.27423492]
[1737932896811,2.42022189,670.31,669.13,0.27423492]
[1737932897011,2.42022189,670.31,669.14,0.27423492]
[1737932897207,2.42022189,670.31,669.13,0.27423492]
[1737932897413,2.42022189,670.31,669.14,0.27423492]
[1737932897610,2.42022189,670.3,669.13,0.27423492]
[1737932897812,2.42022189,670.3,669.14,0.27423492]
[1737932898011,2.42022189,670.3,669.15,0.27423492]
[1737932898209,2.42022189,670.3,669.13,0.27423492]
[1737932898515,2.42022189,670.29,669.14,0.27423611]
[1737932898710,2.42022189,670.29,669.15,0.27423611]
[1737932898909,2.42022189,670.29,669.13,0.27423611]
[1737932899113,2.42022189,670.29,669.14,0.27423611]
[1737932899311,2.42022189,670.28,669.14,0.27423611]
[1737932900011,2.42022189,670.27,669.15,0.27423611]
[1737932900210,2.42022189,670.27,669.16,0.27423611]
[1737932900410,2.42022189,670.27,669.17,0.27423611]
[1737932900609,2.42022189,670.26,669.17,0.27423611]
[1737932900813,2.42022189,670.26,669.18,0.27423611]
[1737932901110,2.42022189,670.25,669.19,0.27423611]
[1737932901311,2.42022189,670.25,669.13,0.27423611]
[1737932901615,2.42022189,670.25,669.14,0.27423611]
[1737932901815,2.42022189,670.24,669.15,0.27423611]
[1737932902016,2.42022189,670.24,669.16,0.27423611]
[1737932902212,2.42022189,670.24,669.13,0.27423611]
[1737932902413,2.42022189,670.23,669.13,0.27423611]
[1737932902614,2.42022189,670.23,669.14,0.27423388]
[1737932902917,2.42022189,670.23,669.15,0.27423388]
[1737932903117,2.42022189,670.23,669.16,0.27423388]
[1737932903317,2.42022189,670.23,669.17,0.27423388]
[1737932903617,2.42022189,670.23,669.12,0.29890004]
[1737932903618,2.42022189,670.22,669.18,0.27423388]
[1737932903818,2.42022189,670.22,669.19,0.27423388]
[1737932904013,2.42022189,670.21,669.13,0.27423388]
[1737932904216,2.42022189,670.21,669.14,0.27423388]
[1737932904416,2.42022189,670.2,669.15,0.27423427]
[1737932904718,2.42022189,670.2,669.16,0.27423427]
[1737932904918,2.42022189,670.2,669.17,0.27423427]
[1737932905221,2.42022189,670.19,669.18,0.27423427]
[1737932905417,2.42022189,670.19,669.19,0.27423427]
[1737932905618,2.42022189,670.19,669.2,0.27423427]
[1737932905818,2.42022189,670.18,669.13,0.27423427]
[1737932906520,2.42022189,670.17,669.13,0.27423427]
[1737932907119,2.42022189,670.16,669.14,0.27423427]
[1737932907314,2.42022189,670.16,669.13,0.27423427]
[1737932907518,2.42022189,670.15,669.14,0.27423427]
[1737932907720,2.42022189,670.15,669.13,0.27423427]
[1737932907915,2.42022189,670.15,669.15,0.27423427]
[1737932908118,2.42022189,670.14,669.16,0.27423427]
[1737932908323,2.42022189,670.14,669.13,0.27423427]
[1737932908516,2.42022189,670.14,669.14,0.27423427]
[1737932908718,2.42022189,670.14,669.13,0.27423427]
[1737932908921,2.42022189,670.14,669.15,0.27423427]
[1737932909125,2.42022189,670.14,669.16,0.27423427]
[1737932909322,2.42022189,670.13,669.13,0.27423427]
[1737932909523,2.42022189,670.13,669.14,0.27423427]
[1737932909723,2.42022189,670.13,669.13,0.27423427]
[1737932909923,2.42022189,670.12,669.14,0.27423427]
[1737932910119,2.42022189,670.12,669.15,0.27423427]
[1737932910325,2.42022189,670.11,669.16,0.27423427]
[1737932910625,2.42022189,670.11,669.17,0.27423427]
[1737932910825,2.42022189,670.1,669.13,0.27423427]
[1737932911226,2.42022189,670.09,669.13,0.27423427]
[1737932911725,2.42022189,670.08,669.13,0.27423427]
[1737932911926,2.42022189,670.07,669.13,0.27423427]
[1737932912521,2.42022189,670.06,669.12,0.29890004]
[1737932913129,2.42022189,670.06,669.14,0.27430234]
[1737932913327,2.42022189,670.05,669.13,0.27435434]
[1737932913527,2.42022189,670.05,669.14,0.27435434]
[1737932913725,2.42022189,670.05,669.06,0.27435434]
[1737932913927,2.42022189,670.05,669.07,0.27435434]
[1737932914121,2.42022189,670.05,669.08,0.27435434]
[1737932914321,2.42022189,670.05,669.06,0.27435434]
[1737932914529,2.42022189,670.04,669.07,0.27435434]
[1737932914828,2.42022189,670.04,669.08,0.27435434]
[1737932915029,2.42022189,670.03,669.06,0.27435434]
[1737932915226,0.29849855,670.02,669.07,0.27435434]
[1737932915426,0.29849855,670.02,669.06,0.27435434]
[1737932915625,2.42022189,670.01,669.07,0.27435434]
[1737932915828,2.42022189,670.01,668.56,0.27436558]
[1737932916129,0.29850746,670.0,668.57,0.27436558]
[1737932916425,2.71872935,670.0,668.58,0.27436558]
[1737932916628,2.71872935,670.0,668.55,1.11174428]
[1737932916832,2.42022189,669.99,668.56,0.27442121]
[1737932917132,0.29851637,669.98,668.56,0.27442121]
[1737932917526,2.42022189,669.97,668.56,0.27442121]
[1737932917725,2.42022189,669.97,668.57,0.27442121]
[1737932917933,0.29852528,669.96,668.58,0.27442121]
[1737932918232,2.71874717,669.96,668.56,0.27442121]
[1737932918432,2.71874717,669.96,668.57,0.27442121]
[1737932918633,2.71874717,669.96,668.58,0.27442121]
[1737932918835,2.42022189,669.95,668.13,0.27442121]
[1737932919135,2.42022189,669.95,668.15,0.29933398]
[1737932919529,0.29853865,669.93,668.15,0.29933398]
[1737932919732,0.29853865,669.93,668.16,0.27442121]
[1737932919933,2.42022189,669.92,668.18,0.29932054]
[1737932920128,0.29854756,669.91,668.19,0.27442121]
[1737932920428,0.29854756,669.91,668.2,0.27442121]
[1737932920627,2.42022189,669.9,668.21,0.27450056]
[1737932920828,2.42022189,669.9,668.22,0.27450056]
[1737932921035,2.42022189,669.9,668.35,1.11174428]
[1737932921233,0.29854756,669.91,668.36,0.27450056]
[1737932921234,2.42022189,669.89,668.36,0.27450056]
[1737932921429,2.42022189,669.89,668.37,0.27450056]
[1737932921628,2.42022189,669.88,668.38,0.27450056]
[1737932921833,0.29856985,669.86,668.39,0.27450056]
[1737932922031,0.29856985,669.86,668.4,0.27450056]
[1737932922229,0.29856985,669.86,668.35,1.11174428]
[1737932922230,2.42022189,669.85,668.41,0.27450056]
[1737932922532,2.42022189,669.85,668.42,0.27450056]
[1737932922733,2.42022189,669.84,668.43,0.27450056]
[1737932923032,2.42022189,669.84,668.44,0.57370467]
[1737932923234,2.42022189,669.84,668.45,0.5737002]
[1737932923435,2.42022189,669.83,668.46,0.57369572]
[1737932923738,2.42022189,669.83,668.47,0.27450056]
[1737932923931,2.42022189,669.83,668.48,0.27450056]
[1737932924237,0.29856985,669.86,668.49,0.5735708]
[1737932924238,0.93085457,669.82,668.49,0.5735708]
[1737932924436,0.93085457,669.82,668.5,0.27438907]
[1737932924637,0.93085457,669.81,668.51,0.27438907]
[1737932924837,0.93085457,669.81,668.52,0.27438907]
[1737932925040,0.93085457,669.81,668.53,0.27438907]
[1737932925339,0.29856985,669.86,668.54,0.27438907]
[1737932925533,0.29856985,669.86,668.55,0.27438907]
[1737932925737,0.29856985,669.86,668.49,0.29918173]
[1737932925738,0.29856985,669.86,668.56,0.27438907]
[1737932926038,0.29856985,669.86,668.57,0.27438907]
[1737932926240,0.91782546,669.85,668.57,0.27438907]
[1737932927034,0.91782546,669.84,668.57,0.27438907]
[1737932927336,0.91782546,669.84,668.58,0.27438907]
[1737932927641,2.38443086,669.83,668.59,0.27438907]
[1737932927942,2.38443086,669.83,668.5,0.27438907]
[1737932928142,2.38443086,669.82,668.51,0.27438907]
[1737932928336,0.29859659,669.8,668.52,0.27438907]
[1737932928539,0.29859659,669.8,668.53,0.27438907]
[1737932928835,0.29859659,669.8,668.54,0.27438907]
[1737932928836,2.38443086,669.79,668.54,0.27438907]
[1737932929143,0.29860997,669.77,668.55,0.27438907]
[1737932929342,0.29860997,669.77,668.56,0.27438907]
[1737932929542,0.29860997,669.77,668.18,0.27438907]
[1737932929842,2.38443086,669.76,668.19,0.57370513]
[1737932930041,0.29861888,669.75,668.2,0.57370065]
[1737932930240,0.29861888,669.75,668.17,1.11174428]
[1737932930241,0.29861888,669.75,668.21,0.57369617]
[1737932930441,2.38443086,669.74,668.22,0.27455444]
[1737932930636,2.38443086,669.74,668.23,0.27455444]
[1737932930838,0.29863226,669.72,668.24,0.27455444]
[1737932931042,0.29863226,669.72,668.25,0.27455444]
[1737932931238,0.29863226,669.72,668.26,0.27455444]
[1737932931445,0.29863226,669.72,668.27,0.27455444]
[1737932931738,0.29863226,669.72,668.28,0.27455444]
[1737932931944,2.38443086,669.71,668.29,0.27455444]
[1737932932143,2.38443086,669.71,668.3,0.27455444]
[1737932932144,0.29864118,669.7,668.3,0.27455444]
[1737932932342,2.38443086,669.69,668.31,0.27455444]
[1737932932541,1.56054395,669.78,668.21,0.2993071]
[1737932932542,2.68308096,669.68,668.32,0.27455444]
[1737932932738,0.29865456,669.67,668.32,0.27455444]
[1737932933138,2.38443086,669.66,668.32,0.27455444]
[1737932933346,0.29866348,669.65,668.32,0.27455444]
[1737932933839,2.38443086,669.64,668.33,0.27455444]
[1737932934047,0.2986724,669.63,668.34,0.27455444]
[1737932934244,0.2986724,669.63,668.35,0.27455444]
[1737932934439,2.38443086,669.62,668.35,0.27455444]
[1737932934642,2.68311218,669.61,668.36,0.27455444]
[1737932934838,2.68311218,669.61,668.37,0.27455444]
[1737932934839,0.29868578,669.6,668.37,0.27455444]
[1737932935144,0.29868578,669.6,668.38,0.27455444]
[1737932935339,2.38443086,669.59,668.39,0.27455444]
[1737932935543,0.2986947,669.58,668.4,0.27455444]
[1737932935845,0.2986947,669.58,668.41,0.27455444]
[1737932936145,2.38443086,669.57,668.42,0.27455444]
[1737932936445,2.38443086,669.57,668.21,0.2993071]
[1737932936446,0.29870362,669.56,668.43,0.27455444]
[1737932936838,2.38443086,669.55,668.44,0.27455444]
[1737932937039,2.38443086,669.55,668.45,0.27455444]
[1737932937242,2.38443086,669.55,668.46,0.27455444]
[1737932937444,2.38443086,669.55,668.47,0.27455444]
[1737932937645,2.38443086,669.55,668.48,0.27455969]
[1737932937942,2.38443086,669.54,668.49,0.27455969]
[1737932938246,2.38443086,669.54,668.5,0.27455969]
[1737932938447,2.38443086,669.53,668.21,0.2993071]
[1737932938746,0.29872147,669.52,668.21,0.2993071]
[1737932939246,2.38443086,669.51,668.21,0.2993071]
[1737932939446,2.38443086,669.51,668.22,0.2745569]
[1737932939747,0.91782546,669.5,668.22,0.2745569]
[1737932940342,0.91782546,669.5,668.23,0.2745569]
[1737932940543,0.91782546,669.49,668.24,0.2745569]
[1737932940746,0.91782546,669.49,668.25,0.2745569]
[1737932941045,2.37794161,669.48,668.26,0.2745569]
[1737932941241,0.29874378,669.47,668.27,0.2745569]
[1737932941446,2.37794161,669.46,668.28,0.2745569]
[1737932941641,2.37794161,669.46,668.29,0.2745569]
[1737932941845,2.37794161,669.46,668.21,0.2993071]
[1737932941846,2.37794161,669.46,668.3,0.2745569]
[1737932942146,2.37794161,669.45,668.22,0.2745569]
[1737932942340,2.37794161,669.45,668.23,0.2745569]
[1737932942542,0.29874378,669.47,668.21,0.2993071]
[1737932942543,2.37794161,669.44,668.24,0.2745569]
[1737932942743,2.37794161,669.44,668.25,0.2745569]
[1737932942947,2.37794161,669.44,668.26,0.2745569]
[1737932943144,2.37794161,669.44,668.27,0.2745569]
[1737932943345,0.91782546,669.43,668.28,0.2745569]
[1737932943651,2.37794161,669.43,668.29,0.2745569]
[1737932943850,0.91782546,669.42,668.3,0.2745569]
[1737932944049,0.91782546,669.42,668.31,0.2745569]
[1737932944250,0.91782546,669.42,668.21,0.2993071]
[1737932944251,0.91782546,669.42,668.32,0.2745569]
[1737932944551,2.37794161,669.41,668.33,0.2745569]
[1737932944750,2.37794161,669.4,668.34,0.2745569]
[1737932944943,0.29878394,669.38,667.27,1.11174428]
[1737932945245,0.29878394,669.38,667.28,0.27493504]
[1737932945451,0.29878394,669.38,667.29,0.27493504]
[1737932945644,1.56261693,669.37,667.3,0.27493504]
[1737932945848,3.94055854,669.37,667.3,0.27493504]
[1737932946047,3.94055854,669.37,667.31,0.27493504]
[1737932946247,0.29883305,669.27,667.32,0.27493504]
[1737932946750,0.29883305,669.27,667.28,0.27493504]
[1737932946951,0.29883305,669.27,667.29,0.27493504]
[1737932947251,2.37794161,669.26,667.27,1.11174428]
[1737932947448,2.37794161,669.26,667.28,0.27515042]
[1737932947652,2.37794161,669.25,667.28,0.27515042]
[1737932948149,2.37794161,669.24,667.28,0.27515042]
[1737932948455,0.29885538,669.22,667.29,0.27515042]
[1737932948653,0.29885538,669.22,667.28,0.27515042]
[1737932948853,0.29885538,669.22,667.27,1.11174428]
[1737932949150,2.37794161,669.21,666.42,0.73011974]
[1737932949453,2.37794161,669.21,666.44,0.30010203]
[1737932949653,2.37794161,669.21,666.45,0.27516354]
[1737932949854,2.37794161,669.2,666.46,0.27516354]
[1737932950054,2.37794161,669.2,666.47,0.27510308]
[1737932950254,0.29885538,669.22,666.48,0.27510308]
[1737932950255,2.37794161,669.19,666.48,0.27510308]
[1737932950455,2.37794161,669.19,666.49,1.00510388]
[1737932950655,2.37794161,669.19,666.5,1.00510388]
[1737932950855,2.37794161,669.18,666.51,1.00510388]
[1737932951057,2.37794161,669.18,666.52,1.00510388]
[1737932951355,2.37794161,669.18,666.53,1.00510388]
[1737932951555,2.37794161,669.18,666.54,1.00510388]
[1737932951854,0.29885538,669.22,666.44,0.30010203]
[1737932951855,2.37794161,669.17,666.55,1.00510388]
[1737932952056,0.29885538,669.22,666.56,1.00510388]
[1737932952057,2.37794161,669.16,666.56,1.00510388]
[1737932952255,2.37794161,669.16,666.57,1.00510388]
[1737932952456,2.37794161,669.16,666.58,1.00510388]
[1737932952656,2.37794161,669.15,666.59,1.00510388]
[1737932952851,2.37794161,669.15,666.6,1.00510388]
[1737932953051,2.37794161,669.15,666.61,0.27510308]
[1737932953253,2.33470934,669.14,666.63,0.3000165]
[1737932953452,0.29894472,669.02,666.63,0.3000165]
[1737932953655,2.33470934,669.01,666.63,0.3000165]
[1737932953853,0.29899835,668.9,666.64,0.27510308]
[1737932954056,2.33470934,668.89,666.66,0.300003]
[1737932954254,2.33470934,668.89,666.67,0.27510308]
[1737932954457,2.33470934,668.89,666.69,0.2999895]
[1737932954654,2.33470934,668.89,666.7,0.27510308]
[1737932954857,2.33470934,668.89,666.71,0.27510308]
[1737932955060,2.33470934,668.88,666.72,1.00510388]
[1737932955262,2.33470934,668.88,666.73,1.00459792]
[1737932955460,2.33470934,668.88,666.74,1.00459792]
[1737932955657,2.33470934,668.87,666.74,1.00459792]
[1737932955857,3.89792876,668.87,666.76,0.299958]
[1737932956060,3.89792876,668.87,666.77,0.27493887]
[1737932956261,0.89796513,668.86,666.79,0.29994451]
[1737932956454,0.89796513,668.86,666.8,0.27493737]
[1737932956653,0.89796513,668.86,666.81,0.27493737]
[1737932956861,0.89796513,668.85,666.83,0.29992651]
[1737932957060,0.29902964,668.83,666.84,0.27493737]
[1737932957261,0.89614665,668.82,666.85,0.27493737]
[1737932957460,0.89614665,668.82,666.86,0.27493737]
[1737932957660,0.89614665,668.81,666.86,0.27493737]
[1737932957857,0.89614665,668.81,666.87,1.00458688]
[1737932958056,0.89614665,668.81,666.83,0.29992651]
[1737932958460,0.29902964,668.83,666.83,0.29992651]
[1737932958863,0.29902964,668.83,666.84,1.00431314]
[1737932959058,0.29902964,668.83,666.86,0.29991302]
[1737932959459,0.29902964,668.83,666.87,0.72946434]
[1737932959663,0.29902964,668.83,666.89,0.29989953]
[1737932961061,0.29902964,668.83,666.9,1.00431314]
[1737932961265,0.29902964,668.83,666.92,0.29988604]
[1737932961467,0.29902964,668.83,666.93,1.00431314]
[1737932961762,0.29902964,668.83,666.95,0.29987255]
[1737932962066,0.29902964,668.83,666.96,0.2748488]
[1737932962266,0.29902964,668.83,666.98,0.29985906]
[1737932962466,0.29902964,668.83,666.99,0.2748488]
[1737932962659,0.29902964,668.83,667.01,0.29984557]
[1737932962860,0.29902964,668.83,667.02,0.2748488]
[1737932963059,0.29902964,668.83,667.04,0.29983209]
[1737932963263,0.29902964,668.83,667.05,0.27490059]
[1737932963463,0.29902964,668.83,667.04,0.29983209]
[1737932963464,0.29902964,668.83,667.06,0.57472369]
[1737932963662,0.29902964,668.83,667.07,0.57471919]
[1737932963961,0.29902964,668.83,667.08,1.00446947]
[1737932964166,0.89726588,668.82,667.09,1.30427909]
[1737932964366,0.89726588,668.82,667.1,1.30427459]
[1737932964567,0.89726588,668.82,667.11,1.00446947]
[1737932964767,0.89726588,668.81,667.12,1.3042656]
[1737932964962,0.89726588,668.81,667.13,1.00453712]
[1737932965169,0.89726588,668.81,667.14,1.00453712]
[1737932965366,0.89726588,668.82,667.15,1.00453712]
[1737932965569,0.89726588,668.82,667.12,0.29979613]
[1737932965570,0.89726588,668.82,667.16,1.00453712]
[1737932965864,0.29904306,668.8,667.17,1.30431079]
[1737932966071,0.29904306,668.8,667.18,1.30430629]
[1737932966368,0.29904306,668.8,666.89,1.56290935]
[1737932966369,0.89726588,668.79,667.19,0.57468605]
[1737932966570,0.29905647,668.77,667.2,0.29976019]
[1737932967068,0.89726588,668.76,667.2,0.29976019]
[1737932967268,0.29906542,668.75,667.2,0.29976019]
[1737932967763,0.29906542,668.75,667.21,0.27492137]
[1737932967964,0.89726588,668.74,667.22,0.27492137]
[1737932968168,0.29907883,668.72,667.22,0.27492137]
[1737932968364,0.29907883,668.72,667.23,0.27492137]
[1737932968570,0.29907883,668.72,667.24,0.27492137]
[1737932968768,2.33419886,668.71,667.25,0.27492137]
[1737932968968,0.29909225,668.69,667.26,0.27492137]
[1737932969169,0.29909225,668.69,667.27,0.27492137]
[1737932969373,0.29909225,668.69,667.28,1.00453712]
[1737932969669,2.33419886,668.68,667.29,0.27492137]
[1737932969870,0.29910567,668.66,667.3,1.00453712]
[1737932970065,0.89726588,668.65,667.31,1.00453712]
[1737932970373,0.29911909,668.63,667.32,1.00453712]
[1737932970671,0.89726588,668.62,667.33,1.00453712]
[1737932970873,0.29913251,668.6,667.34,0.27492137]
[1737932971172,0.29913251,668.6,667.35,0.27492137]
[1737932971472,0.29913251,668.6,667.36,0.27492137]
[1737932971876,0.29913251,668.6,667.37,0.27492137]
[1737932972170,0.89726588,668.59,667.38,0.27492137]
[1737932972375,0.29914146,668.58,667.39,0.27498132]
[1737932972677,0.29914146,668.58,667.4,1.00472215]
[1737932972867,0.29914146,668.58,667.41,1.00472215]
[1737932973177,0.89726588,668.57,667.42,1.00472215]
[1737932973476,0.29915041,668.56,667.42,1.00472215]
[1737932973874,0.89726588,668.55,667.42,1.00472215]
[1737932974072,0.29915936,668.54,667.42,1.00472215]
[1737932974468,0.29915936,668.54,667.43,0.27498132]
[1737932974668,0.89726588,668.53,667.44,0.27498132]
[1737932974872,0.89726588,668.53,667.2,0.29976019]
[1737932974873,0.89726588,668.53,667.45,0.27498132]
[1737932975073,0.29916831,668.52,667.46,0.27498132]
[1737932975273,0.29916831,668.52,667.47,0.27498132]
[1737932975471,0.29916831,668.52,667.48,0.27498132]
[1737932975676,0.29916831,668.52,667.49,0.27498132]
[1737932975868,0.29916831,668.52,667.5,0.27498132]
[1737932976070,0.29916831,668.52,667.51,0.27498132]
[1737932976273,0.29916831,668.52,667.52,0.27498132]
[1737932976471,0.29916831,668.52,667.53,0.27498132]
[1737932976676,0.29916831,668.52,667.54,0.27498132]
[1737932976877,0.29916831,668.52,667.55,0.27498132]
[1737932977074,0.29916831,668.52,667.56,0.27498132]
[1737932977275,0.29916831,668.52,667.57,0.27498132]
[1737932977479,0.29916831,668.52,667.58,0.27498132]
[1737932977778,0.29916831,668.52,667.59,0.27498132]
[1737932977974,0.29916831,668.52,667.6,0.27498132]
[1737932978178,0.29916831,668.52,667.61,0.27498132]
[1737932978380,0.29916831,668.52,667.62,0.27498132]
[1737932978581,0.29916831,668.52,667.63,0.27498132]
[1737932979078,0.90142635,668.51,667.64,0.27498132]
[1737932979479,0.90142635,668.5,667.65,0.27498132]
[1737932979779,0.90142635,668.5,667.66,0.27498132]
[1737932979979,0.29918173,668.49,667.66,0.27498132]
[1737932980381,0.90142635,668.48,667.66,0.27498132]
[1737932980580,0.29919068,668.47,667.66,0.27498132]
[1737932981076,0.90142635,668.46,667.67,0.27498132]
[1737932981279,0.90142635,668.46,667.68,0.27498132]
[1737932981579,0.29919964,668.45,667.69,0.27498132]
[1737932981775,1.20062599,668.45,667.7,0.27498132]
[1737932981981,1.20062599,668.45,667.71,0.27498132]
[1737932982181,1.20062599,668.45,667.2,0.29976019]
[1737932982182,1.20062599,668.45,667.72,0.27498132]
[1737932982481,1.20062599,668.45,667.73,0.27504297]
[1737932982675,1.20062599,668.45,667.74,0.27504297]
[1737932982878,1.20062599,668.45,667.21,0.27504297]